Cogmind - Beta 16.1 @@@ ROGUE MODE // 2026.04.24 @ 03:51:37 Player: Shimejimeji Result: Destroyed by D-53 Grenadier with Mini Grenade Launcher Performance ------------- Evolutions (0) 0 Regions Visited (2) 400 Robots Destroyed (33) 165 Value Destroyed (510) 510 Prototype IDs (0) 0 Alien Tech Used (0) 0 Bonus (0) 0 TOTAL SCORE: 1075 Bonus ------- None Cogmind --------- Core Integrity 0/250 Matter 260/300 Energy 99/100 System Corruption 4% Temperature Warm (135) Movement Core (50) Location -10/Mines Parts ------- > --- POWER (1) -------- (None) > --- PROPULSION (2) --- (None) > --- UTILITY (2) ------ (None) > --- WEAPON (2) ------- (None) > --- INVENTORY (5) ---- Seismic Detector Small Laser Hammer Peak State ------------ > --- POWER ------------ Light Ion Engine > --- PROPULSION ------- Light Treads Light Treads > --- UTILITY ---------- Small Storage Unit Seismic Detector > --- WEAPON ----------- Medium Laser Small Laser > --- INVENTORY -------- Light Ion Engine EM Pulse Gun [Rating: 7] Favorites ----------- Power Light Ion Engine Engine Light Ion Engine Propulsion Light Treads Treads Light Treads Utility Small Storage Unit Device Seismic Detector Storage Small Storage Unit Protection Light Armor Plating Weapon Assault Rifle Energy Gun Medium Laser Energy Cannon Beam Cannon Ballistic Gun Assault Rifle Build | -11 -10 -10 ------- Run | Yrd Mat Min Slots Evolved . | . . . Power . | . . . Propulsion . | . . . Utility . | . . . Weapon . | . . . Parts Attached 13 | 8 4 1 Power 2 | 1 1 . Engine 2 | 1 1 . Core . | . . . Reactor . | . . . Propulsion 2 | 2 . . Treads 2 | 2 . . Leg . | . . . Wheel . | . . . Hover . | . . . Flight . | . . . Utility 4 | 2 1 1 Device 1 | 1 . . Storage 1 | 1 . . Processor . | . . . Hackware . | . . . Protection 2 | . 1 1 Artifact . | . . . Weapon 5 | 3 2 . Energy Gun 3 | 3 . . Energy Cannon 1 | . 1 . Ballistic Gun 1 | . 1 . Ballistic Cannon . | . . . Launcher . | . . . Special Weapon . | . . . Impact Weapon . | . . . Slashing Weapon . | . . . Piercing Weapon . | . . . Special Melee Weapon . | . . . Unidentified Prototypes . | . . . Parts Lost 5 | . 1 4 Power 1 | . 1 . Propulsion 2 | . . 2 Utility 1 | . . 1 Weapon 1 | . . 1 Highest Loss Streak 4 | . 1 4 To Critical Strikes . | . . . Average Backups 3 | 1 3 3 Power . | . . . Propulsion . | . . . Utility 1 | . 1 1 Weapon 1 | . 2 2 Tool/Special . | . . . Unused Backups 2 | . 1 1 Power . | . . . Propulsion . | . . . Utility . | . . . Weapon 2 | . 1 1 Tool/Special . | . . . Average Slot Usage (%) 99 | . 99 85 Engine 13 | . 13 14 Treads 27 | . 28 16 Device 3 | . 3 . Storage 14 | . 14 14 Protection 10 | . 10 14 Energy Gun 10 | . 11 . Energy Cannon 5 | . 5 14 Ballistic Gun 11 | . 11 11 Peak Build Rating 7 | 7 7 7 Average Rating 6 | 6 6 6 On Entrance 4 | . 7 7 Avg Prop Armor Cover (%) . | . . . Naked Turns . | . . . Heaviest Build 16 | 13 16 16 Greatest Support 40 | 40 40 40 Greatest Overweight (x) 4 | 3 . 4 Average Overweight (x) . | . . 1 Largest Inventory Capacity 8 | 8 8 8 Average Capacity 7 | 7 8 8 Most Carried 5 | 3 5 4 Average Carried 3 | 1 3 3 Final Capacity 8 | 8 8 5 Final Carried 4 | 3 4 3 Class Distribution -------------------- 100% | Mutant Dominant Class ---------------- Mutant | -10/Materials Mutant | -10/Mines Resources | -11 -10 -10 ----------- Run | Yrd Mat Min Matter Collected 540 | 235 305 . Remotely . | . . . Salvage Created 889 | 158 714 17 Parts 51 | 12 39 . Haulers Intercepted 2 | . 2 . Recyclers Shooed 1 | 1 . . Parts Field Recycled . | . . . Retrieved Matter . | . . . Parts Self-Destructed . | . . . Prevented . | . . . Parts Restored . | . . . Kills | -11 -10 -10 ------- Run | Yrd Mat Min Combat Hostiles Destroyed 19 | . 17 2 Guns 18 | . 16 2 Classes Destroyed 10 | 2 7 1 Worker 1 | . 1 . Builder 3 | . 3 . Tunneler 5 | 5 . . Hauler 2 | . 2 . Recycler 1 | 1 . . Operator 1 | . 1 . Watcher 3 | . 3 . Swarmer 9 | . 9 . Grunt 8 | . 8 . Assembled 2 | . . 2 Best Kill Streak 3 | 2 3 2 Combat Bots Only 3 | . 3 2 Max Kills in Single Turn 2 | 1 2 1 Gunslinging . | . . . Exploded . | . . . Melee . | . . . Uniques/NPCs Destroyed . | . . . Combat | -11 -10 -10 -------- Run | Yrd Mat Min Hostile Shots Fired 103 | . 75 28 Missed 28 | . 20 8 Hits 75 | . 55 20 Projectile 75 | . 55 20 AOE 5 | . . 5 Critical Strikes 2 | . 2 . Damage Taken 1010 | . 555 455 Core 252 | . 68 184 Absorbed by Shields . | . . . Core Remaining (%) 100 | 100 . . Volleys Fired 107 | 24 73 10 Largest 2 | 2 2 2 Hottest 90 | 90 90 80 Shots Fired 213 | 48 145 20 Gun 195 | 48 137 10 Cannon 18 | . 8 10 Launcher . | . . . Special . | . . . Kinetic 64 | . 54 10 Thermal 130 | 48 72 10 Explosive . | . . . Electromagnetic 19 | . 19 . Robot Hit Streak 10 | 4 10 8 Robot Miss Streak 5 | 5 5 2 Penetration Max . | . . . Secondary Targets 1 | . 1 . Max Gunslinging Chain 1 | . 1 . Shots Hit Robots 127 | 24 88 15 Core Hits 48 | 7 38 3 Critical Kills . | . . . Critical Parts Destroyed . | . . . Critical Strikes 3 | . 3 . Burn 3 | . 3 . Melee Attacks . | . . . Impact . | . . . Slashing . | . . . Piercing . | . . . Sneak Attacks . | . . . Combat Hostiles . | . . . Follow-up Attacks . | . . . Damage Inflicted 1710 | 283 1205 222 Guns 1542 | 283 1141 118 Cannons 157 | . 53 104 Explosions . | . . . Melee . | . . . Ramming 11 | . 11 . Kinetic 503 | . 385 118 Thermal 1045 | 283 658 104 Explosive . | . . . Electromagnetic 151 | . 151 . Impact . | . . . Slashing . | . . . Piercing . | . . . Highest Corruption 4 | . 4 4 Average Corruption 3 | . 3 4 Corruption Purged . | . . . Corruption Blocked . | . . . Effects 34 | . 34 . Message Errors 3 | . 3 . Matter Fused 9 | . 9 . Heat Flow Errors 6 | . 6 . Energy Discharges 6 | . 6 . Data Loss (minor) 2 | . 2 . Data Loss (major) 5 | . 5 . Misfires 1 | . 1 . Weapon Failures 2 | . 2 . Overload Shots . | . . . Overflow Damage . | . . . Projectiles . | . . . Explosions . | . . . Melee . | . . . Knockbacks . | . . . Impact . | . . . Kinetic . | . . . Secondary . | . . . Self-Inflicted Damage . | . . . Shots . | . . . Rammed 2 | . 2 . Targets Rammed 2 | . 2 . Kicked . | . . . Crushed . | . . . Highest Temperature 352 | 150 352 135 Average Temperature 86 | 67 92 78 Received Heat Transfer 198 | . 198 . Effects 2 | . 2 . Shutdowns 1 | . 1 . Energy Bleed 1 | . 1 . Siege Activations . | . . . Martial Activations . | . . . Shielding Activations . | . . . Robots Disrupted . | . . . Combat Hostiles . | . . . Robots Corrupted . | . . . Combat Hostiles . | . . . Parts Fried 1 | . 1 . Impact Corruptions . | . . . Robots Melted 1 | . 1 . Combat Hostiles 1 | . 1 . Parts Melted 4 | 1 3 . Heat Transferred 3014 | 720 2072 222 Parts Sabotaged . | . . . Parts Stolen . | . . . Parts Stripped . | . . . Power Chain Reactions . | . . . Alert | -11 -10 -10 ------- Run | Yrd Mat Min Maximum Alert Level 1 | . 1 . Low Security (%) 84 | 100 82 100 Level 1 15 | . 17 . Level 2 . | . . . Level 3 . | . . . Level 4 . | . . . Level 5 . | . . . High Security . | . . . Max Security . | . . . Peak Influence 238 | 5 238 35 Initial 35 | . 3 35 Average 116 | 1 133 13 Influence Increases 602 | 30 572 . Destroy 0b10 Robot/C 340 | . 340 . Destroy 0b10 Robot/NC 80 | 30 50 . Destroy Leader 80 | . 80 . Successful Hack 10 | . 10 . Disable Machine 15 | . 15 . Destroy Structure 2 | . 2 . Lose Combat Pursuer 75 | . 75 . Influence Decreases 602 | 25 485 92 Entered New Map 59 | . 2 57 Time Decay 508 | 25 473 10 Lost Part 35 | . 10 25 Squads Dispatched 3 | . 3 . Investigation 2 | . 2 . Extermination . | . . . Reinforcement 1 | . 1 . Assault . | . . . Garrison . | . . . Intercept . | . . . Searches Triggered . | . . . Construction Impeded . | . . . Haulers Reinforced . | . . . Active Scanning Responses . | . . . Cargo Convoy Interrupts . | . . . Stealth | -11 -10 -10 --------- Run | Yrd Mat Min Distress Signals 2 | . 2 . Communications Jammed . | . . . Distress Signals . | . . . Times Spotted 52 | . 30 22 Peak Tracking Total 20 | . 5 20 Tactical Retreats 4 | . 4 . Traps | -11 -10 -10 ------- Run | Yrd Mat Min Traps Triggered 5 | . 5 . Indirectly . | . . . Trap Hack Attempts . | . . . Triggered . | . . . Disarmed . | . . . Reprogrammed . | . . . Reused . | . . . Traps Extracted . | . . . Installed . | . . . Triggered . | . . . Machines | -11 -10 -10 ---------- Run | Yrd Mat Min Machines Disabled 1 | . 1 . Max in Single Turn 1 | . 1 . Machines Repaired . | . . . Machines Dismantled . | . . . Machines Sabotaged . | . . . Overloaded Fab Kills . | . . . Hacking | -11 -10 -10 --------- Run | Yrd Mat Min Machines Accessed 6 | . 6 . Terminals 5 | . 5 . Fabricators . | . . . Repair Stations 1 | . 1 . Recycling Units . | . . . Scanalyzers . | . . . Garrison Access . | . . . Total Hacks 10 | . 10 . Successful 7 | . 7 . Failed 2 | . 2 . Catastrophic 2 | . 2 . Database Lockouts 1 | . 1 . Manual 8 | . 8 . Terminals 9 | . 9 . Fabricators . | . . . Repair Stations 1 | . 1 . Recycling Units . | . . . Scanalyzers . | . . . Garrison Access . | . . . Terminal Hacks 1 | . 1 . Robot Analysis 1 | . 1 . Fabricator Hacks . | . . . Repair Station Hacks 1 | . 1 . Refit 1 | . 1 . Recycling Unit Hacks . | . . . Scanalyzer . | . . . Garrison Access Hacks . | . . . Unauthorized Hacks 5 | . 5 . Terminals 5 | . 5 . Skim 5 | . 5 . Fabricators . | . . . Repair Stations . | . . . Recycling Units . | . . . Scanalyzers . | . . . Garrison Access . | . . . Data Cores Recovered . | . . . Used . | . . . Hacking Detections 4 | . 4 . Full Trace Events . | . . . Feedback Events . | . . . Feedback Blocked . | . . . Robot Schematics Acquired . | . . . Robots Built . | . . . Authchips . | . . . Time . | . . . Total Robot Build Rating . | . . . Part Schematics Acquired . | . . . Parts Built . | . . . Authchips . | . . . Time . | . . . Total Part Build Rating . | . . . Part Studies Acquired . | . . . Parts Repaired . | . . . Time . | . . . Parts Recycled . | . . . Recycled Matter . | . . . Retrieved Matter . | . . . Retrieved Components . | . . . Parts Scanalyzed . | . . . Part Schematics Acquired . | . . . Parts Damaged . | . . . Bothacking | -11 -10 -10 ------------ Run | Yrd Mat Min Used RIF Installer . | . . . Robots Hacked . | . . . Non-combat . | . . . Combat . | . . . Robot Hacks Applied . | . . . Relay Couplers Released . | . . . Fabnet Peak Effective % . | . . . Robots Rewired . | . . . Allies Hacked . | . . . Hacks Repelled . | . . . Allies | -11 -10 -10 -------- Run | Yrd Mat Min Total Allies . | . . . Largest Group . | . . . Highest-Rated Group . | . . . Highest-Rated Ally . | . . . Total Orders . | . . . Ally Attacks . | . . . Total Damage . | . . . Kills . | . . . Allies Corrupted . | . . . Allies Melted . | . . . Intel | -11 -10 -10 ------- Run | Yrd Mat Min Active Infowar (turns) 482 | 90 392 . Seismic 482 | 90 392 . Robot Analysis Total 1 | . 1 . Derelict Logs Recovered . | . . . Drone Launches . | . . . Drone Recoveries . | . . . Exploration | -11 -10 -10 ------------- Run | Yrd Mat Min Turns Passed 1889 | 213 1639 37 Spaces Moved 866 | 86 776 4 Core 18 | 16 . 2 Treads 848 | 70 776 2 Legs . | . . . Wheels . | . . . Hover . | . . . Flight . | . . . Fastest Speed 50 | 50 160 50 Average Speed 158 | 148 160 155 Slowest Speed 250 | 200 160 250 Overloaded Moves . | . . . Propulsion Burnouts . | . . . Robots Hopped . | . . . Potential Cave-ins . | . . . Cave-ins Triggered . | . . . Exploration Rate (%) 35 | 5 96 5 Regions Visited 2 Branch Regions 1 Pre-discovered Areas 1 | . 1 . Known Exits Taken . | . . . Unknown Exits Taken 2 | 1 1 . Scrap Searched . | . . . Spaces Dug . | . . . Terrain Destroyed . | . . . Melee . | . . . Projectile . | . . . AOE . | . . . Terrain Rammed . | . . . Walls Destroyed . | . . . Machines Disabled . | . . . Actions | -11 -10 -10 --------- Run | Yrd Mat Min Total 1160 | 120 1025 15 Wait 166 | . 166 . Move 864 | 85 775 4 Hop . | . . . Pick Up 4 | 3 1 . Fast Attach 7 | 7 . . Attach 2 | . 1 1 Detach 1 | . 1 . Swap 6 | 1 5 . Drop 1 | . 1 . Fire 107 | 24 73 10 Melee . | . . . Ram . | . . . Kick . | . . . Crush 2 | . 2 . Escape Stasis . | . . . Rewire . | . . . Trap . | . . . Miscellaneous . | . . . Route ------- -11/Scrapyard -10/Materials (discovered 5 exits: [*Mat x3] / [*Min] / Sub) -10/Mines (discovered 1 exit: Sub) History --------- Turn | Location | Event 23 | -11/Scrapyard | Discovered new exit (range 14) 214 | -11/Scrapyard | Entered Materials 273 | -10/Materials | Central database locked down 308 | -10/Materials | Build established: Mutant 365 | -10/Materials | Discovered new exit (range 16) 583 | -10/Materials | Discovered new exit (range 7) 816 | -10/Materials | Discovered new exit (range 6) 1034 | -10/Materials | Discovered new exit (range 8) 1431 | -10/Materials | Learned location of 2 exits from Subcaves 1609 | -10/Materials | Learned Storage trap positions 1648 | -10/Materials | Learned 2 Mines zone layouts 1695 | -10/Materials | Learned Storage emergency access door positions 1752 | -10/Materials | Identified exit to Subcaves 1752 | -10/Materials | Learned location of 1 exit from Materials 1853 | -10/Materials | Entered Mines 1854 | -10/Mines | Assembled infested the area 1873 | -10/Mines | Core integrity fell below 50% 1889 | -10/Mines | Core integrity fell below 20% 1890 | -10/Mines | Released all parts (4) 1890 | -10/Mines | Destroyed by D-53 Grenadier with Mini Grenade Launcher Last Messages --------------- 01880_ as-84395 destroyed. 01880_ as-43905 destroyed. 01880_ as-88722 destroyed. 01880_ as-47044 destroyed. 01880_ as-42858 destroyed. 01880_ as-42171 destroyed. 01880_ as-73644 destroyed. 01880_ as-30638 destroyed. 01880_ as-60257 destroyed. 01882_ as-19886 destroyed. 01882_ as-31832 destroyed. 01882_ as-10488 destroyed. 01883_ The unstable cave ceiling collapses. 01888_ as-15668 destroyed. 01888_ Assault Rifle destroyed. 01889_ T-07 Excavator is excavating. 01890_ Released Backup Plating I. 01890_ Released Lgt. Ion Engine. 01890_ Released Sml. Storage Unit. 01890_ Released Beam Cannon. Map ----- +----------------------------------------------------+ | ????????????????????????????????????????????????? | | ????????????????????????????????????????????????? | | ????????????????????????????????????????????????? | | ????????????????????????????????????????????????? | | ????????????????????????????????????????????????? | | ????????????????????????????????????????????????? | | ????????????????????????????????????????????????? | | ????????????????????????????????????????????????? | | ????????????????????????????????????????????????? | | ????????????????????????????????????????????????? | | ????????????????????????????????????????????????? | | ????????????????????????????????????????????????? | | ????????????????????????????????????????????????? | | ??????????????????#?????????????????????????????? | | ?????????????????? ###??????????????????????????? | | ?????????????????##t ??????????????????????????? | | ????????????????## #?????????????????????????? | | ????????????????# % ?????????????????????????? | | ????????????????# #????????????????????????? | | ????????????????# ????????????????????????? | | ????????????????# # #???????????????????????? | | ??????????????### d ##??????????????????????? | | ???????????## # ###????????????????????? | | ??????????## d ##???????????????????? | | ????????? # #???????????????????? | | ????????? @ #???????????????????? | | ????????? !!] ##???????????????????? | | ????????? < * #???????????????????? | | ?????????# ##???????????????????? | | ??????????# #???????????????????? | | ??????????# ##### ####???????????????????? | | ???????????## # ?????####???????????????????????? | | ????????????????????????????????????????????????? | | | | | | | | | | | | | | | | | | | | | | | | | | | | | | | | | | | +----------------------------------------------------+ Best States ------------- Heat Dissipation 25 Energy Generation 10 Energy Capacity 125 Matter Stores 300 Matter Capacity 300 Sight Range 16 Terrain Scan Density 10 Armor Coverage 150 Evasion (%) 50 Recoil Reduction 2 Item Schematics ----------------- None Robot Schematics ------------------ None Fabricated ------------ Nothing Repaired ---------- Nothing Studied --------- None Alien Tech Used ----------------- None Achievements -------------- Hunted Challenges ------------ None Game ------ Seed BlanketSigixFacilitator Manual? 0 Play Time 00:10:29 Cumulative 52.1 hours Start 2026.04.24 @ 03:42:08 End 2026.04.24 @ 03:51:37 Sessions 1 Manual Loads 0 Difficulty Rogue Special Mode None Game No. 34 Rogue 34 Adventurer 0 Explorer 0 Win Type - Total 0 Types 0/0/0/0/0/0/0/0/0/0 Lore% 44 Gallery% 31 Achievement% 29 Wizard Run 0 Options --------- Layout 0 ASCII 0 Keyboard 1 Movement Arrows Keybinds 0 Fullscreen 2 Font 18/SmallcapsGlow Map View 76x50 Zoom Use 0% Tactical HUD 1 Map Filters NONE Filters NONE Steam 1 RUN: 452d6ddc-9812-47bb-b4a7-b91fe0d7b108